lending/lending_fUSD_20240621
["ID","MTS","AMOUNT","RATE_DAILY","PERIOD"]
[330079163,1718989206200,-500.0,0.00022739,4]
[330079164,1718989206241,-1099.21,0.00022739,4]
[330079165,1718989206284,-561.23,0.00022739,4]
[330079166,1718989206342,-500.0,0.00022739,4]
[330079167,1718989206390,-500.0,0.00022739,4]
[330079168,1718989206439,-1465.54,0.00022739,4]
[330079169,1718989206488,-1028.37,0.00022739,4]
[330079170,1718989206535,-747.14,0.00022739,4]
[330079171,1718989206584,-500.0,0.00022739,4]
[330079172,1718989206632,-1226.74,0.00022739,4]
[330079173,1718989206676,-516.53,0.00022739,4]
[330079174,1718989206723,-500.0,0.00022739,4]
[330079175,1718989206770,-500.0,0.00022739,4]
[330079176,1718989206820,-500.0,0.00022739,4]
[330079177,1718989206869,-591.78,0.00022739,4]
[330079178,1718989206925,-782.24,0.00022739,4]
[330079179,1718989206972,-520.62,0.00022739,4]
[330079180,1718989207017,-1310.65,0.00022739,4]
[330079181,1718989207059,-541.91,0.00022739,4]
[330079182,1718989207099,-500.0,0.00022739,4]
[330079183,1718989207140,-553.03,0.00022739,4]
[330079184,1718989207181,-724.51,0.00022739,4]
[330079185,1718989207224,-609.9,0.00022739,4]
[330079186,1718989207265,-500.0,0.00022739,4]
[330079187,1718989207310,-723.46,0.00022739,4]
[330079188,1718989207351,-500.0,0.00022739,4]
[330079189,1718989207393,-576.04,0.00022739,4]
[330079190,1718989207435,-584.45,0.00022739,4]
[330079191,1718989207477,-2385.93,0.00022739,4]
[330079192,1718989207519,-500.0,0.00022739,4]
[330079193,1718989207566,-656.02,0.00022739,4]
[330079194,1718989207606,-541.65,0.00022739,4]
[330079195,1718989207648,-500.0,0.00022739,4]
[330079196,1718989207690,-1109.12,0.00022739,4]
[330079197,1718989207733,-3795.07,0.00022739,4]
[330079198,1718989207776,-500.0,0.00022739,4]
[330079199,1718989207822,-746.33,0.00022739,4]
[330079200,1718989207864,-500.0,0.00022739,4]
[330079201,1718989207909,-1974.58,0.00022739,4]
[330079202,1718989207952,-500.0,0.00022739,4]
[330079203,1718989207995,-500.0,0.00022739,4]
[330079204,1718989208034,-891.41,0.00022739,4]
[330079205,1718989208074,-1854.83,0.00022739,4]
[330079206,1718989208112,-872.07,0.00022739,4]
[330079207,1718989208151,-1350.6,0.00022739,4]
[330079208,1718989208189,-638.57,0.00022739,4]
[330079209,1718989208229,-1380.76,0.00022739,4]
[330079210,1718989208267,-3159.84,0.00022739,4]
[330079211,1718989208311,-1144.85,0.00022739,4]
[330079212,1718989208356,-3867.95,0.00022739,4]
[330079213,1718989208397,-500.0,0.00022739,4]
[330079214,1718989208437,-663.89,0.00022739,4]
[330079215,1718989208479,-500.0,0.00022739,4]
[330079216,1718989208523,-500.0,0.00022739,4]
[330079217,1718989208571,-521.31,0.00022739,4]
[330079218,1718989208609,-784.12,0.00022739,4]
[330079219,1718989208650,-991.22,0.00022739,4]
[330079220,1718989208690,-616.1,0.00022739,4]
[330079221,1718989208728,-500.0,0.00022739,4]
[330079222,1718989208768,-500.0,0.00022739,4]
[330079223,1718989208809,-1045.54,0.00022739,4]
[330079224,1718989208848,-2311.03,0.00022739,4]
[330079225,1718989208890,-2210.25,0.00022739,4]
[330079226,1718989210417,-500.0,0.00022739,4]
[330079227,1718989210463,-778.29,0.00022739,4]
[330079228,1718989210504,-500.0,0.00022739,4]
[330079229,1718989210545,-566.67,0.00022739,4]
[330079230,1718989210584,-1007.76,0.00022739,4]
[330079231,1718989210624,-438.22088384,0.00022739,4]
[330079232,1718989210666,-552.43,0.00022739,4]
[330079233,1718989210710,-1209.95,0.00022739,4]
[330079234,1718989210752,-1062.91,0.00022739,4]
[330079235,1718989210792,-904.29,0.00022739,4]
[330079236,1718989210842,-7542.58,0.00022739,4]
[330079237,1718989210884,-5519.13,0.00022739,4]
[330079238,1718989210927,-1069.16,0.00022739,4]
[330079239,1718989210968,-500.0,0.00022739,4]
[330079240,1718989211011,-571.9,0.00022739,4]
[330079241,1718989211059,-1015.69,0.00022739,4]
[330079242,1718989211105,-6399.99,0.00022739,4]
[330079243,1718989211148,-1025.68,0.00022739,4]
[330079244,1718989211202,-500.0,0.00022739,4]
[330079245,1718989211257,-500.0,0.00022739,4]
[330079246,1718989211314,-500.0,0.00022739,4]
[330079247,1718989211369,-2983.13,0.00022739,4]
[330079248,1718989211426,-500.0,0.00022739,4]
[330079249,1718989211476,-1651.11,0.00022739,4]
[330079250,1718989211525,-1723.58,0.00022739,4]
[330079251,1718989211569,-1326.76,0.00022739,4]
[330079252,1718989211620,-10836.48,0.00022739,4]
[330079253,1718989211673,-1821.6,0.00022739,4]
[330079254,1718989211717,-12739.48,0.00022739,4]
[330079255,1718989211771,-4285.9,0.00022739,4]
[330079256,1718989211826,-500.0,0.00022739,4]
[330079257,1718989211877,-883.46,0.00022739,4]
[330079258,1718989211930,-972.31,0.00022739,4]
[330079259,1718989211976,-589.13,0.00022739,4]
[330079260,1718989212031,-500.0,0.00022739,4]
[330079261,1718989212081,-1456.87,0.00022739,4]
[330079262,1718989212129,-1799.97,0.00022739,4]
[330079263,1718989212177,-771.36,0.00022739,4]
[330079264,1718989212224,-1118.96,0.00022739,4]
[330079265,1718989212269,-1698.63,0.00022739,4]
[330079266,1718989212318,-500.0,0.00022739,4]
[330079267,1718989212364,-5941.9,0.00022739,4]
[330079268,1718989212409,-10944.81,0.00022739,4]
[330079269,1718989212452,-500.0,0.00022739,4]
[330079270,1718989212497,-1729.62,0.00022739,4]
[330079271,1718989212541,-500.0,0.00022739,4]
[330079272,1718989212585,-500.0,0.00022739,4]
[330079273,1718989212629,-2700.77,0.00022739,4]
[330079274,1718989212673,-4987.88,0.00022739,4]
[330079275,1718989212715,-500.0,0.00022739,2]
[330079276,1718989212756,-500.0,0.00022739,4]
[330079277,1718989212799,-1392.67,0.00022739,4]
[330079278,1718989212844,-877.61,0.00022739,4]
[330079279,1718989212890,-500.0,0.00022739,4]
[330079280,1718989212935,-500.0,0.00022739,4]
[330079281,1718989212978,-500.0,0.00022739,4]
[330079282,1718989213019,-500.0,0.00022739,4]
[330079283,1718989213064,-223.35414433,0.00022739,4]
[330079284,1718989213106,-1043.77,0.00022739,4]
[330079285,1718989213147,-629.96,0.00022739,4]
[330079286,1718989213189,-3830.03,0.00022739,4]
[330079287,1718989213233,-964.86,0.00022739,4]
[330079288,1718989213279,-40490.59,0.00022739,4]
[330079289,1718989213321,-500.0,0.00022739,4]
[330079290,1718989213364,-500.0,0.00022739,4]
[330079291,1718989213410,-3619.34,0.00022739,4]
[330079292,1718989213454,-500.0,0.00022739,4]
[330079293,1718989213498,-500.0,0.00022739,4]
[330079294,1718989213543,-500.0,0.00022739,4]
[330079295,1718989213586,-500.0,0.00022739,4]
[330079296,1718989213631,-2068.44,0.00022739,4]
[330079297,1718989213675,-626.98,0.00022739,4]
[330079298,1718989213729,-836.43,0.00022739,4]
[330079299,1718989213774,-2608.58,0.00022739,4]
[330079300,1718989213825,-547.29,0.00022739,4]
[330079301,1718989213872,-1430.67,0.00022739,4]
[330079302,1718989213925,-500.0,0.00022739,4]
[330079303,1718989213971,-543.29,0.00022739,4]
[330079304,1718989214018,-15219.17,0.00022739,4]
[330079305,1718989214070,-1338.96,0.00022739,4]
[330079306,1718989214118,-1349.53,0.00022739,4]
[330079307,1718989214168,-610.09,0.00022739,4]
[330079308,1718989214214,-998.95,0.00022739,4]
[330079309,1718989214262,-500.0,0.00022739,4]
[330079310,1718989214314,-500.0,0.00022739,4]
[330079311,1718989214360,-761.55,0.00022739,4]
[330079312,1718989214406,-560.39,0.00022739,4]
[330079313,1718989214451,-500.0,0.00022739,4]
[330079314,1718989214496,-500.0,0.00022739,4]
[330079315,1718989214542,-2693.31,0.00022739,4]
[330079316,1718989214585,-500.0,0.00022739,4]
[330079317,1718989214633,-500.0,0.00022739,4]
[330079318,1718989214679,-710.94,0.00022739,4]
[330079319,1718989214725,-749.57,0.00022739,4]
[330079320,1718989214774,-1120.96,0.00022739,4]
[330079321,1718989214832,-271.02292677,0.00022739,4]
[330079322,1718989214882,-1162.11,0.00022739,4]
[330079323,1718989214928,-500.0,0.00022739,4]
[330079324,1718989214972,-500.0,0.00022739,4]
[330079325,1718989215017,-829.28,0.00022739,4]
[330079326,1718989215068,-500.0,0.00022739,4]
[330079327,1718989215112,-3113.59,0.00022739,4]
[330079328,1718989215158,-1612.54,0.00022739,4]
[330079329,1718989215201,-500.0,0.00022739,4]
[330079330,1718989215246,-797.24,0.00022739,4]
[330079331,1718989215291,-500.0,0.00022739,4]
[330079332,1718989215335,-617.5,0.00022739,4]
[330079333,1718989215379,-500.0,0.00022739,4]
[330079334,1718989215426,-17782.52,0.00022739,4]
[330079335,1718989216256,-500.0,0.00022739,4]
[330079336,1718989216340,-836.32,0.00022739,4]
[330079337,1718989216383,-564.84,0.00022739,4]
[330079338,1718989216422,-1031.55,0.00022739,4]
[330079339,1718989216459,-500.0,0.00022739,4]
[330079340,1718989216497,-628.14,0.00022739,4]
[330079341,1718989216534,-678.83,0.00022739,4]
[330079342,1718989216570,-500.0,0.00022739,4]
[330079343,1718989216607,-1526.41,0.00022739,4]
[330079344,1718989216645,-500.0,0.00022739,4]
[330079345,1718989216682,-6327.26,0.00022739,4]
[330079346,1718989216720,-151.0,0.00022739,7]
[330079347,1718989216758,-798.04,0.00022739,4]
[330079348,1718989216798,-1305.06,0.00022739,4]
[330079349,1718989216837,-6627.63,0.00022739,4]
[330079350,1718989216878,-735.75,0.00022739,4]
[330079351,1718989216917,-1004.85,0.00022739,4]
[330079352,1718989216963,-500.0,0.00022739,4]
[330079353,1718989217002,-500.0,0.00022739,4]
[330079354,1718989217040,-500.0,0.00022739,4]
[330079355,1718989217078,-5698.04,0.00022739,4]
[330079356,1718989217117,-7488.18,0.00022739,4]
[330079357,1718989217159,-1277.85,0.00022739,4]
[330079358,1718989217195,-3301.6,0.00022739,4]
[330079359,1718989217234,-1710.84,0.00022739,4]
[330079360,1718989217271,-500.0,0.00022739,4]
[330079361,1718989217308,-1936.6,0.00022739,4]
[330079362,1718989217344,-500.0,0.00022739,4]
[330079363,1718989217381,-811.25,0.00022739,4]
[330079364,1718989217415,-500.0,0.00022739,4]
[330079365,1718989217451,-500.0,0.00022739,4]
[330079366,1718989217486,-754.93,0.00022739,4]
[330079367,1718989217523,-5600.05,0.00022739,4]
[330079368,1718989217562,-826.67,0.00022739,4]
[330079369,1718989217597,-500.0,0.00022739,4]
[330079370,1718989217632,-888.88,0.00022739,4]
[330079371,1718989217671,-1754.5,0.00022739,4]
[330079372,1718989217707,-595.79,0.00022739,4]
[330079373,1718989217743,-1644.95,0.00022739,4]
[330079374,1718989217779,-738.1,0.00022739,4]
[330079375,1718989217822,-500.0,0.00022739,4]
[330079376,1718989217863,-500.0,0.00022739,4]
[330079377,1718989217902,-973.12,0.00022739,4]
[330079378,1718989217942,-1205.55,0.00022739,4]
[330079379,1718989217982,-1597.69,0.00022739,4]
[330079380,1718989218022,-500.0,0.00022739,4]
[330079381,1718989218063,-2373.33,0.00022739,4]
[330079382,1718989218098,-151.0,0.00022739,7]
[330079383,1718989218135,-500.0,0.00022739,2]
[330079384,1718989218172,-500.0,0.00022739,4]
[330079385,1718989218209,-521.5,0.00022739,7]
[330079386,1718989218245,-717.64,0.00022739,4]
[330079387,1718989218280,-500.0,0.00022739,4]
[330079388,1718989218323,-500.0,0.00022739,4]
[330079389,1718989218358,-2133.14,0.00022739,4]
[330079390,1718989218396,-5729.69,0.00022739,4]
[330079391,1718989218434,-324.556842,0.00022739,7]
[330079392,1718989218472,-500.0,0.00022739,4]
[330079393,1718989218510,-522.35,0.00022739,4]
[330079394,1718989218546,-574.5,0.00022739,4]
[330079395,1718989218584,-610.9,0.00022739,4]
[330079396,1718989218623,-1312.03,0.00022739,4]
[330079397,1718989218663,-324.556842,0.00022739,7]
[330079398,1718989218700,-985.93,0.00022739,4]
[330079399,1718989218736,-500.0,0.00022739,4]
[330079400,1718989218775,-5127.76,0.00022739,4]
[330079401,1718989218816,-635.71,0.00022739,4]
[330079402,1718989218857,-500.0,0.00022739,4]
[330079403,1718989218898,-500.0,0.00022739,4]
[330079404,1718989218938,-668.33,0.00022739,4]
[330079405,1718989218978,-1140.36,0.00022739,4]
[330079406,1718989219020,-500.0,0.00022739,4]
[330079407,1718989219058,-1185.18,0.00022739,4]
[330079408,1718989219097,-2279.84,0.00022739,4]
[330079409,1718989219136,-608.85,0.00022739,4]
[330079410,1718989219245,-3974.55,0.00022739,4]
[330079411,1718989219285,-1519.08,0.00022739,4]
[330079412,1718989219325,-548.21,0.00022739,4]
[330079413,1718989219364,-2138.7,0.00022739,4]
[330079414,1718989219406,-7738.33,0.00022739,4]
[330079415,1718989219444,-500.0,0.00022739,4]
[330079416,1718989219485,-1499.69,0.00022739,4]
[330079417,1718989219525,-2062.98,0.00022739,4]
[330079418,1718989219568,-500.0,0.00022739,4]
[330079419,1718989219609,-679.56,0.00022739,4]
[330079420,1718989219649,-3373.6,0.00022739,4]
[330079421,1718989219689,-500.0,0.00022739,4]
[330079422,1718989219732,-500.0,0.00022739,4]
[330079423,1718989219773,-1110.5,0.00022739,4]
[330079424,1718989219816,-1378.85,0.00022739,4]
[330079425,1718989219855,-852.13,0.00022739,4]
[330079426,1718989219895,-500.0,0.00022739,4]
[330079427,1718989219937,-801.39,0.00022739,4]
[330079428,1718989219977,-6808.95,0.00022739,4]
[330079429,1718989220018,-500.0,0.00022739,4]
[330079430,1718989220058,-500.0,0.00022739,4]
[330079431,1718989220097,-4502.87,0.00022739,4]
[330079432,1718989220136,-922.79,0.00022739,4]
[330079433,1718989220174,-780.77,0.00022739,4]
[330079434,1718989220212,-529.35,0.00022739,4]
[330079435,1718989220250,-500.0,0.00022739,4]
[330079436,1718989220291,-582.75,0.00022739,4]
[330079437,1718989220332,-500.0,0.00022739,4]
[330079438,1718989220372,-500.0,0.00022739,4]
[330079439,1718989220412,-1314.08,0.00022739,4]
[330079440,1718989220450,-500.0,0.00022739,4]
[330079441,1718989220488,-10013.26,0.00022739,4]
[330079442,1718989220527,-500.0,0.00022739,4]
[330079443,1718989220569,-900.38,0.00022739,4]
[330079444,1718989220611,-3165.23,0.00022739,4]
[330079445,1718989220650,-2038.4,0.00022739,4]
[330079446,1718989220690,-500.0,0.00022739,4]
[330079447,1718989220728,-584.71,0.00022739,4]
[330079448,1718989220767,-563.5,0.00022739,4]
[330079449,1718989220805,-3628.25,0.00022739,4]
[330079450,1718989220844,-688.89,0.00022739,4]
[330079451,1718989220889,-500.0,0.00022739,4]
[330079452,1718989220931,-749.86,0.00022739,4]
[330079453,1718989220970,-847.05,0.00022739,4]
[330079454,1718989221009,-2002.5,0.00022739,4]
[330079455,1718989221051,-2430.06,0.00022739,4]
[330079456,1718989221092,-1269.72,0.00022739,4]
[330079457,1718989221133,-874.69,0.00022739,4]
[330079458,1718989221173,-500.0,0.00022739,4]
[330079459,1718989221212,-8189.97,0.00022739,4]
[330079460,1718989221250,-500.0,0.00022739,4]
[330079461,1718989221288,-2058.83,0.00022739,4]
[330079462,1718989221333,-2035.04,0.00022739,4]
[330079463,1718989221376,-627.19,0.00022739,4]
[330079464,1718989221413,-1042.2,0.00022739,4]
[330079465,1718989221448,-879.75,0.00022739,4]
[330079466,1718989221483,-500.0,0.00022739,4]
[330079467,1718989221519,-500.0,0.00022739,4]
[330079468,1718989221558,-588.19,0.00022739,4]
[330079469,1718989221593,-3185.38,0.00022739,4]
[330079470,1718989221630,-687.44,0.00022739,4]
[330079471,1718989221666,-2732.8,0.00022739,4]
[330079472,1718989221703,-2819.32,0.00022739,4]
[330079473,1718989221741,-500.0,0.00022739,4]
[330079474,1718989221780,-1597.02,0.00022739,4]
[330079475,1718989221820,-1019.06,0.00022739,4]
[330079476,1718989221858,-811.36,0.00022739,4]
[330079477,1718989221898,-717.66,0.00022739,4]
[330079478,1718989221935,-2334.7,0.00022739,4]
[330079479,1718989221973,-948.09,0.00022739,4]
[330079480,1718989222012,-1858.42,0.00022739,4]
[330079481,1718989222050,-3289.51,0.00022739,4]
[330079482,1718989222091,-11955.72139905,0.00022745,2]
[330079483,1718989222128,-800.0,0.00022758,2]
[330079484,1718989222166,-30254.52058162,0.0002277,2]
[330079485,1718989222206,-500.0,0.00022805,2]
[330079486,1718989222244,-11955.72139905,0.00022817,2]
[330079487,1718989222281,-11955.72139905,0.0002289,2]
[330079488,1718989222319,-174.70059569,0.0002289,2]
[330079489,1718989222360,-439.9126497,0.0002289,2]
[330079490,1718989222400,-1811.92442982,0.0002289,2]
[330079491,1718989222437,-161.25508038,0.0002289,2]
[330079492,1718989222473,-190.0,0.000229,5]
[330079493,1718989222515,-208.34508777,0.00022989,2]
[330079494,1718989222559,-300.135,0.0002299,2]
[330079495,1718989222598,-885.62901837,0.0002299,5]
[330079496,1718989222637,-143840.89833202,0.0002299,5]
[330079497,1718989224389,-150.0,0.00021369,2]
[330079498,1718989224470,-150.0,0.00021369,2]
[330079499,1718989224508,-150.0,0.00021369,2]
[330079500,1718989224629,-150.0,0.00021369,2]
[330079501,1718989224666,-150.0,0.00021369,2]
[330079502,1718989224711,-150.0,0.00021369,2]
[330079503,1718989224835,-150.0,0.00021369,2]
[330079504,1718989224901,-150.0,0.00021369,2]
[330079505,1718989224947,-150.0,0.00021369,2]
[330079506,1718989225082,-150.0,0.00021369,2]
[330079507,1718989225131,-150.0,0.00021369,2]
[330079508,1718989225202,-150.0,0.00021369,2]
[330079509,1718989225338,-181.87001375,0.00021369,2]
[330079511,1718989247410,434.96,0.00021476,30]
[330079514,1718989328688,-189.86,0.00021333,2]
[330079515,1718989328726,-3018.12998625,0.00021369,2]
[330079516,1718989328776,-500.0,0.00021406,2]
[330079517,1718989328821,-150.0,0.0002144,2]
[330079518,1718989328868,-183.75507,0.00021448,2]
[330079519,1718989330362,-169.48516651,0.00021476,2]
[330079520,1718989330411,-360.0,0.00021478,2]
[330079521,1718989330457,-388.9599,0.00021817,2]
[330079522,1718989330500,-504.58,0.00021907,3]
[330079523,1718989330542,-163.5767579,0.00021908,2]
[330079524,1718989330586,-500.0,0.00021917,4]
[330079525,1718989330633,-621.56,0.00021917,4]
[330079526,1718989330679,-531.24,0.00021917,4]
[330079527,1718989330724,-500.0,0.00021917,4]
[330079528,1718989330771,-500.0,0.00021917,4]
[330079529,1718989330815,-500.0,0.00021917,4]
[330079530,1718989330861,-28680.83,0.00021917,4]
[330079531,1718989330905,-1572.29,0.00021917,4]
[330079532,1718989330953,-1201.37,0.00021917,4]
[330079533,1718989331000,-7248.4,0.00021917,4]
[330079534,1718989331042,-500.0,0.00021917,4]
[330079535,1718989331085,-551.75,0.00021917,4]
[330079536,1718989331132,-1005.63,0.00021917,4]
[330079537,1718989331173,-548.02,0.00021917,4]
[330079538,1718989331214,-500.0,0.00021917,4]
[330079539,1718989331255,-770.44,0.00021917,4]
[330079540,1718989331300,-501.57,0.00021917,4]
[330079541,1718989331342,-500.0,0.00021917,4]
[330079542,1718989331386,-500.0,0.00021917,4]
[330079543,1718989331426,-1841.87,0.00021917,4]
[330079544,1718989331465,-3223.29,0.00021917,4]
[330079545,1718989331508,-4599.28,0.00021917,4]
[330079546,1718989331547,-500.0,0.00021917,4]
[330079547,1718989331589,-500.0,0.00021917,4]
[330079548,1718989331629,-500.0,0.00021917,4]
[330079549,1718989331668,-5333.33,0.00021917,4]
[330079550,1718989331707,-522.9,0.00021917,4]
[330079551,1718989331744,-742.2,0.00021917,4]
[330079552,1718989331781,-500.0,0.00021917,4]
[330079553,1718989331823,-10616.24,0.00021917,4]
[330079554,1718989331866,-500.0,0.00021917,4]
[330079555,1718989331912,-500.0,0.00021917,4]
[330079556,1718989331963,-1192.22,0.00021917,4]
[330079557,1718989332013,-500.0,0.00021917,4]
[330079558,1718989332060,-500.0,0.00021917,4]
[330079559,1718989332102,-4951.58,0.00021917,4]
[330079560,1718989332148,-938.16,0.00021917,4]
[330079561,1718989332189,-2642.79,0.00021917,4]
[330079562,1718989332229,-500.0,0.00021917,4]
[330079563,1718989332392,-1372.38,0.00021917,4]
[330079564,1718989332436,-500.0,0.00021917,4]
[330079565,1718989332479,-1160.56,0.00021917,4]
[330079566,1718989332520,-500.0,0.00021917,4]
[330079567,1718989332560,-500.0,0.00021917,4]
[330079568,1718989332603,-4311.97,0.00021917,4]
[330079569,1718989332646,-250.0,0.00021917,4]
[330079570,1718989332685,-624.64,0.00021917,4]
[330079571,1718989332727,-500.0,0.00021917,4]
[330079572,1718989332768,-1457.99,0.00021917,4]
[330079573,1718989332807,-500.0,0.00021917,4]
[330079574,1718989332847,-511.55,0.00021917,4]
[330079575,1718989332890,-500.0,0.00021917,4]
[330079576,1718989332935,-3016.12,0.00021917,4]
[330079577,1718989332976,-1124.7,0.00021917,4]
[330079578,1718989333018,-500.0,0.00021917,4]
[330079579,1718989333058,-595.44,0.00021917,4]
[330079580,1718989333098,-500.0,0.00021917,2]
[330079581,1718989333136,-4176.99,0.00021917,4]
[330079582,1718989333174,-963.23,0.00021917,4]
[330079583,1718989333211,-427.2477448,0.00021917,4]
[330079584,1718989333248,-500.0,0.00021917,4]
[330079585,1718989333285,-759.23,0.00021917,4]
[330079586,1718989333322,-500.0,0.00021917,4]
[330079587,1718989333360,-19923.27,0.00021917,4]
[330079588,1718989333397,-1020.76,0.00021917,4]
[330079589,1718989333434,-35607.45,0.00021917,4]
[330079590,1718989333471,-500.0,0.00021917,4]
[330079591,1718989333508,-500.0,0.00021917,4]
[330079592,1718989333546,-500.0,0.00021917,4]
[330079593,1718989333586,-1064.78,0.00021917,4]
[330079594,1718989333625,-873.22,0.00021917,4]
[330079595,1718989333662,-1000.29,0.00021917,4]
[330079596,1718989333699,-500.0,0.00021917,4]
[330079597,1718989333735,-500.0,0.00021917,4]
[330079598,1718989333773,-733.93,0.00021917,4]
[330079599,1718989333810,-1972.32,0.00021917,4]
[330079600,1718989333845,-2686.69,0.00021917,4]
[330079601,1718989333881,-1011.28,0.00021917,4]
[330079602,1718989333922,-852.94,0.00021917,4]
[330079603,1718989333961,-554.48,0.00021917,4]
[330079604,1718989333999,-183.75507,0.00021985,2]
[330079605,1718989334038,-2678.0,0.00022098,6]
[330079606,1718989334074,-1219.8,0.0002218,4]
[330079607,1718989334111,-2040.63,0.0002218,4]
[330079608,1718989334147,-871.25,0.0002218,4]
[330079609,1718989334182,-500.0,0.0002218,4]
[330079610,1718989334218,-500.0,0.0002218,4]
[330079611,1718989334254,-500.0,0.0002218,2]
[330079612,1718989334294,-1063.28,0.0002218,4]
[330079613,1718989334331,-1664.44,0.0002218,4]
[330079614,1718989334366,-2566.45,0.0002218,4]
[330079615,1718989334401,-500.0,0.0002218,4]
[330079616,1718989334439,-500.0,0.0002218,4]
[330079617,1718989334478,-1747.85,0.0002218,4]
[330079618,1718989334516,-574.66,0.0002218,4]
[330079619,1718989334552,-1705.93,0.0002218,4]
[330079620,1718989334592,-500.0,0.0002218,4]
[330079621,1718989334632,-1809.88,0.0002218,4]
[330079622,1718989334670,-500.0,0.0002218,4]
[330079623,1718989334706,-790.72,0.0002218,4]
[330079624,1718989334744,-500.0,0.0002218,4]
[330079625,1718989334783,-614.11,0.0002218,4]
[330079626,1718989334822,-500.0,0.0002218,4]
[330079627,1718989334862,-1508.15,0.0002218,4]
[330079628,1718989334899,-1548.69,0.0002218,4]
[330079629,1718989334938,-2741.26,0.0002218,4]
[330079630,1718989334978,-500.0,0.0002218,4]
[330079631,1718989335017,-6285.49,0.0002218,4]
[330079632,1718989335055,-1898.31,0.0002218,4]
[330079633,1718989335093,-655.33,0.0002218,4]
[330079634,1718989335132,-900.76,0.0002218,4]
[330079635,1718989335170,-1711.8,0.0002218,4]
[330079636,1718989335206,-500.0,0.0002218,4]
[330079637,1718989335244,-500.0,0.0002218,4]
[330079638,1718989335282,-500.0,0.0002218,4]
[330079639,1718989335320,-1259.32,0.0002218,4]
[330079640,1718989335356,-2485.94,0.0002218,4]
[330079641,1718989335395,-500.0,0.0002218,4]
[330079642,1718989335433,-500.0,0.0002218,4]
[330079643,1718989335476,-543.58,0.0002218,4]
[330079644,1718989335515,-1395.51,0.0002218,4]
[330079645,1718989335553,-500.0,0.0002218,4]
[330079646,1718989335597,-500.0,0.0002218,4]
[330079647,1718989335642,-5180.35,0.0002218,4]
[330079648,1718989335680,-779.08,0.0002218,4]
[330079649,1718989335720,-2519.32,0.0002218,4]
[330079650,1718989335759,-882.56,0.0002218,4]
[330079651,1718989335795,-500.0,0.0002218,4]
[330079652,1718989335831,-1115.61,0.0002218,4]
[330079653,1718989335867,-500.0,0.0002218,4]
[330079654,1718989335903,-500.0,0.0002218,4]
[330079655,1718989335944,-13200.45,0.0002218,4]
[330079656,1718989335981,-2657.49,0.0002218,4]
[330079657,1718989336020,-500.0,0.0002218,4]
[330079658,1718989336056,-363.95968165,0.0002219,4]
[330079659,1718989336092,-610.27669079,0.0002219,7]
[330079660,1718989336129,-500.0,0.0002219,4]
[330079661,1718989336166,-2683.64,0.0002219,4]
[330079662,1718989336202,-1833.6,0.0002219,4]
[330079663,1718989336243,-2534.22,0.0002219,4]
[330079664,1718989336278,-1662.17,0.0002219,4]
[330079665,1718989336314,-1196.01,0.0002219,4]